bitfinex/quotes_ETHUSD_20250725
["timestamp","ask_amount","ask_price","bid_price","bid_amount"]
[1753412740591,0.04,3612.9,3612.8,4.73553622]
[1753412740797,0.04,3612.9,3612.8,4.76321558]
[1753412741012,0.04,3614.9,3614.8,3.57710478]
[1753412741311,0.04,3614.9,3614.8,4.59560478]
[1753412741474,0.04,3614.9,3614.8,3.57710478]
[1753412741672,0.04,3614.9,3614.8,4.59560478]
[1753412742059,0.04,3614.9,3614.8,5.06377111]
[1753412742582,0.04,3615.9,3615.8,2.76563969]
[1753412742801,0.886,3615.9,3611.9,2.76856788]
[1753412742957,3.844,3613.6,3612.8,0.001]
[1753412743158,0.844,3613.6,3612.8,0.001]
[1753412743357,0.02765656,3613.5,3612.8,0.001]
[1753412743572,2.76671093,3614.4,3612.9,0.8624]
[1753412743771,2.76727901,3613.7,3613.0,1.0185]
[1753412743984,0.5725,3614.2,3613.1,7.83236933]
[1753412744185,3.33937326,3614.2,3613.2,5.041]
[1753412744499,2.76731635,3613.7,3613.1,5.042]
[1753412744706,0.5725,3614.2,3613.0,1.0185]
[1753412744905,2.76764645,3613.2,3612.9,5.9014]
[1753412745209,0.3704,3614.3,3612.9,5.9014]
[1753412745210,0.5725,3613.6,3613.1,0.04]
[1753412745385,2.7676298,3613.2,3613.1,0.04]
[1753412745799,0.5725,3613.5,3613.1,0.04]
[1753412745994,2.76762178,3613.3,3613.1,0.04]
[1753412746313,2.76721651,3613.8,3613.1,0.04]
[1753412746473,2.76740273,3613.5,3613.1,0.04]
[1753412747005,2.76724686,3613.7,3613.1,0.04]
[1753412747170,0.5725,3613.9,3613.1,0.04]
[1753412747370,2.76649089,3614.7,3613.1,0.04]
[1753412747371,2.8076344,3615.9,3613.2,0.02767629]
[1753412747605,2.8076344,3615.9,3613.4,2.76745321]
[1753412747606,2.7667642,3614.4,3613.4,2.76745321]
[1753412747806,2.7667642,3614.4,3613.3,0.8607]
[1753412747807,0.5711,3614.9,3613.5,7.79339664]
[1753412748011,2.76678834,3614.3,3613.5,5.026]
[1753412748409,2.76654082,3614.7,3613.8,2.76715215]
[1753412748579,2.7664272,3614.8,3613.9,2.79473506]
[1753412748776,2.76629887,3615.0,3613.9,0.02767093]
[1753412749082,7.202,3615.8,3613.9,0.02767093]
[1753412749083,2.76618376,3615.1,3614.1,2.76687392]
[1753412749284,2.76624635,3615.1,3614.2,5.8787]
[1753412749508,0.81832095,3615.6,3614.3,1.01746787]
[1753412749708,0.8572,3615.7,3614.4,0.9898]
[1753412749911,0.042,3615.9,3614.5,0.56986634]
[1753412750136,0.042,3615.9,3614.8,2.76633572]
[1753412750348,2.76589056,3615.5,3614.9,5.03966328]
[1753412750494,0.042,3615.9,3614.9,5.03966328]
[1753412750495,2.76578673,3615.7,3614.9,5.03966328]
[1753412750822,2.76563969,3615.8,3614.9,5.012]
[1753412751025,0.1384,3615.4,3614.9,5.1504]
[1753412751209,0.1384,3615.4,3615.0,0.4476]
[1753412752494,2.76594567,3615.4,3614.3,0.5422]
[1753412752725,2.76586684,3615.6,3614.7,2.76641443]
[1753412752907,0.1384,3615.3,3614.8,0.4476]
[1753412753122,0.7095,3615.3,3614.8,0.1384]
[1753412753315,0.1384,3615.1,3614.5,0.1384]
[1753412753513,2.76625293,3615.0,3614.9,4.996]
[1753412753813,2.76625293,3615.0,3614.5,0.1384]
[1753412753814,2.76625172,3615.0,3614.5,0.1384]
[1753412754012,3.33742825,3614.9,3614.8,4.994]
[1753412754213,3.33742825,3614.9,3614.2,0.9991]
[1753412754214,2.76640478,3614.8,3614.2,0.9991]
[1753412754439,0.1384,3614.3,3613.8,0.4476]
[1753412754637,0.1384,3614.3,3614.0,4.991]
[1753412756738,0.8441,3615.2,3614.1,0.9898]
[1753412757058,0.8441,3615.2,3614.1,0.1384]
[1753412757059,2.76662128,3614.6,3614.1,0.1384]
[1753412757569,2.76662128,3614.6,3613.7,4.12093613]
[1753412757570,0.1384,3614.3,3613.7,1.3537]
[1753412757844,0.1384,3614.3,3613.8,5.1154]
[1753412758249,0.5711,3614.2,3613.9,4.971]
[1753412758551,2.76701715,3614.0,3613.6,4.971]
[1753412758749,0.1384,3613.8,3613.6,4.971]
[1753412758982,2.90557526,3613.8,3613.6,4.971]
[1753412759247,0.1384,3613.8,3613.6,4.971]
[1753412759968,2.76724686,3613.7,3613.6,4.971]
[1753412760535,0.1384,3613.8,3613.6,4.971]
[1753412760933,0.1384,3613.8,3613.1,0.4876]
[1753412761134,1.445,3614.6,3613.5,2.76732729]
[1753412761373,2.76695012,3614.1,3613.2,4.955]
[1753412761571,0.5711,3614.3,3613.2,4.955]
[1753412761731,0.5711,3614.3,3613.3,0.56987553]
[1753412761931,0.02765656,3614.2,3613.2,0.4476]
[1753412762232,3.33790079,3614.3,3613.3,4.963]
[1753412762437,3.33790079,3614.3,3613.3,7.73052276]
[1753412762637,0.5711,3614.3,3613.8,2.76716347]
[1753412763173,0.8739,3614.6,3613.5,2.76740002]
[1753412763343,0.5711,3615.0,3613.9,0.4476]
[1753412763344,1.3964,3615.0,3613.9,0.4476]
[1753412763543,1.3964,3615.0,3614.2,2.76686024]
[1753412763757,1.3964,3615.0,3614.0,4.956]
[1753412763957,2.76641919,3614.8,3614.0,4.956]
[1753412764169,2.76649078,3614.7,3614.0,4.956]
[1753412764329,2.76641923,3614.8,3614.0,4.956]
[1753412764538,2.7668691,3614.2,3614.0,4.956]
[1753412764750,2.76680134,3614.3,3614.0,4.956]
[1753412764959,2.76671932,3614.4,3614.0,4.956]
[1753412765160,2.76671932,3614.4,3613.6,2.76731668]
[1753412765370,3.33781932,3614.4,3613.9,4.945]
[1753412765537,0.5711,3614.4,3613.9,4.945]
[1753412765936,3.33786484,3614.4,3613.9,4.945]
[1753412766147,3.33786484,3614.4,3613.6,2.76730036]
[1753412766346,2.76679856,3614.3,3613.7,4.941]
[1753412766547,2.76709372,3613.9,3613.8,4.938]
[1753412766960,0.02765656,3614.0,3613.5,4.938]
[1753412767160,2.76725783,3613.7,3613.2,0.78116497]
[1753412767337,2.76725783,3613.7,3613.2,1.22876497]
[1753412767539,2.7676298,3613.2,3613.1,0.041]
[1753412768325,0.5711,3613.6,3613.1,0.041]
[1753412768581,3.3387298,3613.2,3613.1,0.041]
[1753412769070,2.7676298,3613.2,3613.1,0.041]
[1753412769274,3.3387298,3613.2,3613.1,0.041]
[1753412769474,3.3387298,3613.2,3612.1,0.04]
[1753412769475,2.76839599,3612.2,3612.1,0.04]
[1753412769880,0.8621,3612.7,3612.1,0.04]
[1753412770093,2.76839599,3612.2,3612.1,0.04]
[1753412770575,0.8621,3612.7,3612.1,0.04]
[1753412770944,2.76825783,3612.4,3612.1,0.04]
[1753412771145,3.63013798,3612.7,3612.1,0.04]
[1753412771146,2.76837215,3612.3,3612.1,0.04]
[1753412771346,0.1384,3612.2,3612.1,0.04]
[1753412771871,2.90679599,3612.2,3612.1,0.04]
[1753412772091,0.1384,3612.2,3612.1,0.04]
[1753412772377,2.90679599,3612.2,3612.1,0.04]
[1753412772740,0.7095,3612.2,3612.1,0.04]
[1753412772981,0.1384,3612.2,3612.1,0.04]
[1753412773464,2.90679599,3612.2,3612.1,0.04]
[1753412773641,2.90679599,3612.2,3611.1,0.04]
[1753412773642,0.1384,3612.2,3611.1,0.04]
[1753412773843,0.1384,3611.2,3611.1,0.04]
[1753412774601,0.8856,3611.9,3611.1,0.4876]
[1753412774779,0.1384,3611.5,3611.1,0.4876]
[1753412774985,0.1384,3611.5,3611.1,0.65647549]
[1753412775278,3.8252626,3611.2,3611.1,0.04]
[1753412775489,4.79441916,3611.2,3611.1,0.04]
[1753412775642,2.76985292,3610.3,3610.2,0.05]
[1753412775872,2.76985292,3610.3,3609.0,0.5422]
[1753412775873,0.1384,3610.3,3607.3,2.77210124]
[1753412776074,9.54795094,3610.8,3608.5,0.1384]
[1753412776075,2.77115778,3608.6,3608.5,0.1384]
[1753412776272,2.90986499,3608.2,3607.6,0.1384]
[1753412776688,0.1384,3608.2,3607.6,0.1384]
[1753412776896,0.1384,3608.2,3607.6,2.91029434]
[1753412777197,0.1384,3608.2,3607.6,0.1384]
[1753412777411,2.77140949,3608.3,3607.2,2.77221928]
[1753412777586,3.91436499,3608.2,3607.1,0.04]
[1753412778408,7.67936499,3608.2,3607.1,0.04]
[1753412778776,9.8499,3608.2,3607.1,0.04]
[1753412778976,12.62136499,3608.2,3607.1,0.04]
[1753412779199,9.8499,3608.2,3607.1,0.04]
[1753412779417,12.62136499,3608.2,3607.1,0.04]
[1753412779571,1.9079,3608.2,3607.1,0.04]
[1753412779772,2.76989715,3610.3,3607.1,0.04]
[1753412779773,0.5664,3608.9,3608.1,2.8115418]
[1753412780015,1.0045,3608.9,3608.1,0.59831918]
[1753412780320,1.0045,3608.8,3608.1,0.04]
[1753412780618,0.02765656,3608.7,3608.1,0.04]
[1753412780908,2.77123458,3608.5,3608.1,0.04]
[1753412781119,4.0045,3608.4,3608.1,0.04]
[1753412781272,2.77146499,3608.2,3608.1,0.04]
[1753412781470,5.77146499,3608.2,3608.1,0.04]
[1753412781799,0.5664,3608.2,3608.1,2.8115418]
[1753412782131,0.5664,3608.2,3608.1,0.04]
[1753412782616,0.5664,3609.5,3608.2,2.77146499]
[1753412782797,0.9006,3609.7,3608.5,0.8817]
[1753412782998,0.9006,3609.7,3608.6,0.48581157]
[1753412783202,0.5664,3610.2,3608.8,2.77099898]
[1753412783421,0.9006,3610.4,3608.9,0.48580927]
[1753412783626,0.5664,3610.7,3608.9,0.48580927]
[1753412783826,0.9406,3610.9,3609.1,3.65247387]
[1753412784023,0.9406,3610.9,3609.2,0.48580697]
[1753412784243,0.9406,3610.9,3610.1,2.76999838]
[1753412784525,0.04,3610.9,3609.8,0.4581]
[1753412784728,0.04,3610.9,3610.0,0.02770083]
[1753412784938,0.04,3610.9,3610.1,1.88308008]
[1753412785226,0.04,3610.9,3610.3,2.76984485]
[1753412785424,0.04,3610.9,3610.4,2.79746255]
[1753412785733,0.04,3610.9,3610.5,0.90089699]
[1753412785895,0.04,3610.9,3610.8,4.21396936]
[1753412786227,0.04,3611.9,3611.8,2.76870258]
[1753412786413,0.04,3611.9,3611.8,8.60820258]
[1753412786724,2.00447477,3613.5,3611.8,1.8455]
[1753412786725,0.24482837,3613.4,3611.8,1.8455]
[1753412786925,2.76747641,3613.5,3611.8,0.8945]
[1753412786926,0.4381,3613.0,3611.8,0.8945]
[1753412787227,0.5664,3613.2,3610.6,0.4581]
[1753412787228,1.2801,3612.8,3610.6,0.4581]
[1753412787429,2.76838788,3612.3,3610.7,4.948]
[1753412787614,0.24482837,3612.7,3611.1,0.9194]
[1753412787932,1.4084,3612.8,3611.2,0.97869162]
[1753412788149,0.04,3612.9,3611.5,0.8354]
[1753412788430,0.1784,3612.9,3612.5,2.7681405]
[1753412788614,0.1784,3612.9,3612.6,13.96928089]
[1753412788790,0.04,3612.9,3612.8,2.90633622]
[1753412788991,0.04,3612.9,3612.8,8.40233622]
[1753412789331,0.04,3613.9,3613.8,2.76717029]
[1753412789501,0.04,3613.9,3613.8,7.73984199]
[1753412789713,0.04,3613.9,3613.8,8.80457029]
[1753412790231,1.43807477,3614.7,3614.3,2.76676799]
[1753412790526,1.43807477,3614.5,3613.9,1.3026]
[1753412790690,0.04,3614.9,3613.9,1.3026]
[1753412790691,1.43807477,3614.4,3614.0,5.0854]
[1753412790892,0.28482837,3614.9,3614.1,0.951]
[1753412791092,0.28482837,3614.9,3614.3,0.1384]
[1753412791093,0.24482837,3614.8,3614.3,0.1384]
[1753412791319,0.04,3614.9,3614.6,0.1384]
[1753412791629,0.04,3614.9,3614.8,2.76640478]
[1753412791828,0.04,3614.9,3614.8,9.50590478]
[1753412792315,0.04,3614.9,3614.8,4.56190478]
[1753412792519,0.04,3614.9,3614.8,15.90040516]
[1753412792694,0.04,3614.9,3614.8,13.33383964]
[1753412792896,0.04,3614.9,3614.8,18.27283964]
[1753412793227,1e-08,3614.9,3614.8,21.27283964]
[1753412793531,1e-08,3614.9,3614.8,16.33383964]
[1753412793688,1e-08,3614.9,3614.8,21.27483964]
[1753412794128,1e-08,3614.9,3614.8,0.8445]
[1753412794337,1e-08,3614.9,3614.8,8.54690478]
[1753412794528,0.002,3617.3,3615.0,0.8389]
[1753412794731,0.002,3617.3,3617.2,2.76456928]
[1753412794903,0.002,3617.3,3617.2,14.96421497]
[1753412795105,0.002,3617.3,3617.2,15.46806928]
[1753412795303,0.002,3617.3,3617.2,15.47506928]
[1753412795503,0.002,3617.3,3617.2,17.61037621]
[1753412796102,0.002,3617.3,3617.2,17.60237621]
[1753412796390,0.002,3617.3,3617.2,4.97]
[1753412796591,0.002,3617.3,3617.2,4.968]
[1753412797093,0.002,3617.3,3616.9,0.5315]
[1753412797429,0.002,3617.3,3617.2,2.76456928]
[1753412797630,1e-08,3617.6,3617.3,5.76449285]
[1753412797832,1e-08,3618.0,3617.9,2.76403438]
[1753412798129,0.4381,3620.1,3617.9,7.75867472]
[1753412798336,1e-08,3618.9,3618.8,2.76334696]
[1753412798544,1e-08,3618.9,3618.8,14.95398042]
[1753412798746,1e-08,3618.9,3618.8,15.91594696]
[1753412799040,0.002,3620.4,3620.3,2.76220202]
[1753412799344,0.002,3620.4,3620.3,0.02762202]
[1753412799516,0.002,3620.4,3620.3,7.74220202]
[1753412799717,0.002,3620.4,3620.3,8.73180202]
[1753412799934,0.002,3620.4,3620.3,8.27370202]
[1753412800105,0.002,3620.4,3620.3,9.92425703]
[1753412800707,1e-08,3620.4,3620.3,12.92425703]
[1753412800907,0.002,3621.2,3621.1,2.76159178]
[1753412801112,0.002,3621.2,3621.1,15.86549178]
[1753412801343,0.002,3621.2,3621.1,16.85509178]
[1753412801544,0.002,3621.2,3621.1,18.81677147]
[1753412801854,1e-08,3621.7,3621.6,5.76121051]
[1753412802159,1e-08,3621.7,3621.6,7.74121051]
[1753412802349,1e-08,3621.7,3621.6,12.58331051]
[1753412802549,1e-08,3621.9,3621.8,2.76105803]
[1753412802725,1e-08,3621.9,3621.8,7.29549488]
[1753412803043,1e-08,3621.9,3621.8,13.40249488]
[1753412803247,1e-08,3621.9,3621.8,13.40349488]
[1753412803450,1e-08,3621.9,3621.8,5.1184]
[1753412803644,1e-08,3621.9,3621.8,7.87945803]
[1753412803946,1e-08,3621.9,3621.8,8.41095803]
[1753412804108,1e-08,3621.9,3621.8,6.108]
[1753412804445,1e-08,3621.9,3621.8,5.1144]
[1753412804666,1e-08,3621.9,3621.8,5.14201058]
[1753412804942,1e-08,3621.9,3621.8,5.1144]
[1753412805347,1e-08,3621.9,3621.8,9.46174803]
[1753412806253,1e-08,3621.9,3621.8,12.46174803]
[1753412806453,1e-08,3621.9,3621.8,12.45574803]
[1753412807344,0.002,3622.5,3622.4,2.7606007]
[1753412807662,0.002,3622.5,3622.4,7.8650007]
[1753412807962,1e-08,3622.5,3622.4,8.00757169]
[1753412808121,0.002,3623.5,3623.4,2.75983882]
[1753412808457,0.002,3623.5,3622.4,1.89537099]
[1753412808753,0.002,3623.5,3622.5,4.958]
[1753412808955,0.002,3623.5,3622.6,4.98360448]
[1753412809130,0.002,3623.5,3622.8,2.76022656]
[1753412809330,0.002,3623.5,3623.4,2.75983882]
[1753412809530,0.002,3623.5,3623.4,7.71483882]
[1753412809732,0.002,3623.5,3623.4,8.76231741]
[1753412809937,0.002,3623.5,3623.4,8.76631741]
[1753412810351,0.002,3623.5,3623.0,9.94814352]
[1753412810352,0.002,3623.5,3623.0,7.188]
[1753412810533,0.002,3623.5,3623.1,4.955]
[1753412810862,1e-08,3623.5,3623.4,3.62823882]
[1753412811067,1e-08,3623.5,3623.4,8.6118372]
[1753412811250,1e-08,3623.5,3623.4,9.63023882]
[1753412811445,1e-08,3623.5,3623.4,8.91326182]
[1753412812225,1e-08,3623.5,3623.4,13.89126182]
[1753412812453,0.002,3624.3,3624.0,2.75938189]
[1753412812766,0.002,3624.3,3624.2,5.75922962]
[1753412812966,1e-08,3624.3,3624.2,5.75922962]
[1753412813270,1e-08,3624.3,3624.2,17.59398971]
[1753412814150,1e-08,3625.0,3624.8,2.75877289]
[1753412814351,1e-08,3625.0,3624.9,10.75628375]
[1753412814566,1e-08,3625.0,3624.9,11.77469679]
[1753412815494,1.4914,3626.9,3624.9,10.72869679]
[1753412815495,0.04,3626.9,3624.9,10.72869679]
[1753412815677,0.04,3626.9,3626.8,2.75725157]
[1753412815992,0.04,3626.9,3625.9,8.42359894]
[1753412815993,0.04,3626.9,3626.0,2.75785406]
[1753412816157,0.04,3626.9,3626.8,2.75725157]
[1753412816357,0.04,3626.9,3626.2,3.0]
[1753412816558,0.04,3626.9,3626.8,2.75725157]
[1753412816871,0.04,3626.9,3626.8,7.71825157]
[1753412817065,1.0794,3626.9,3626.8,4.959]
[1753412817390,0.04,3626.9,3626.8,7.71625157]
[1753412817590,0.002,3627.4,3626.8,7.71625157]
[1753412817591,0.002,3627.4,3627.2,2.7569475]
[1753412817792,0.002,3627.4,3627.2,7.74951697]
[1753412817960,0.002,3627.4,3627.2,7.7219475]
[1753412818287,0.002,3627.4,3627.2,0.1376]
[1753412818487,0.002,3627.4,3626.2,0.8737]
[1753412818488,0.002,3627.4,3627.1,0.1376]
[1753412818694,0.002,3627.4,3626.2,3.6313478]
[1753412818695,0.552,3627.3,3627.0,4.96]
[1753412818912,0.002,3627.3,3627.0,4.96]
[1753412819117,0.002,3627.3,3627.1,0.16517023]
[1753412819257,0.002,3627.3,3627.2,2.7569475]
[1753412819458,0.5732,3627.3,3626.9,2.75711178]
[1753412819745,1.0394,3627.2,3627.0,4.967]
[1753412819997,0.1376,3626.7,3626.2,0.1376]
[1753412820198,0.49585656,3626.6,3625.5,4.972]
[1753412820380,1.4302,3625.9,3625.4,0.1376]
[1753412820551,0.55,3625.7,3625.3,0.1376]
[1753412820894,0.4682,3626.6,3625.3,0.51496]
[1753412821188,0.4682,3626.6,3626.0,2.75783884]
[1753412821388,0.4682,3626.6,3625.7,2.75808809]
[1753412821389,0.55,3626.2,3625.7,0.1376]
[1753412821553,1.0394,3626.1,3625.7,0.1376]
[1753412821758,0.4682,3626.1,3625.7,0.1376]
[1753412821955,0.4682,3626.7,3625.8,0.02758012]
[1753412822155,0.55,3626.6,3626.0,0.1376]
[1753412822355,0.5712,3626.5,3625.9,0.1376]
[1753412822594,0.7088,3626.5,3625.9,0.1376]
[1753412822955,0.4682,3626.7,3625.8,4.981]
[1753412822956,0.6058,3626.7,3626.2,0.1376]
[1753412823193,0.4682,3626.7,3626.4,0.1376]
[1753412823400,0.1376,3626.9,3626.8,2.75725157]
[1753412823694,0.1376,3627.2,3626.8,2.75725157]
[1753412823860,0.1376,3627.2,3626.6,0.16517403]
[1753412824056,0.6058,3627.2,3626.6,0.16517403]
[1753412824353,0.1376,3627.1,3626.8,2.75722766]
[1753412824557,0.6876,3627.1,3627.0,2.75709953]
[1753412825180,1.0182,3627.2,3627.1,2.75702351]
[1753412825389,1.1558,3627.2,3627.1,2.75702351]
[1753412825559,1e-08,3627.3,3627.2,2.7569475]
[1753412825978,0.46820001,3627.3,3627.2,2.7569475]
[1753412826195,1e-08,3627.3,3627.2,2.7569475]
[1753412826396,1e-08,3627.3,3627.2,7.7459475]
[1753412826697,1e-08,3627.4,3627.3,2.7568715]
[1753412826997,1e-08,3627.4,3627.3,7.92404021]
[1753412827236,1e-08,3627.5,3627.4,2.7567955]
[1753412828259,1e-08,3627.5,3627.4,2.78436345]
[1753412828514,1e-08,3627.5,3627.4,2.7567955]
[1753412828795,1e-08,3627.5,3627.4,4.01610863]
[1753412829003,1e-08,3627.5,3627.4,8.06210863]
[1753412829158,1e-08,3627.5,3627.4,12.01110863]
[1753412829769,0.042,3627.9,3627.8,2.75649153]
[1753412829770,1e-08,3627.9,3627.8,2.75649153]
[1753412829971,1e-08,3627.9,3627.8,10.77605644]
[1753412830286,1e-08,3627.9,3627.8,12.20636152]
[1753412830805,1e-08,3627.9,3627.8,13.25236152]
[1753412831175,1e-08,3627.9,3627.8,12.20636152]
[1753412831482,0.04,3629.9,3629.8,2.75497272]
[1753412831687,0.04,3629.9,3629.8,7.73497272]
[1753412832305,0.04,3629.9,3629.8,11.78397675]
[1753412832306,1e-08,3629.9,3629.8,11.78397675]
[1753412832920,1e-08,3629.9,3629.8,11.79897675]
[1753412833107,1e-08,3629.9,3629.8,12.84497675]
[1753412833432,1e-08,3629.9,3629.8,8.72257675]
[1753412833633,1e-08,3629.9,3629.8,13.71657675]
[1753412833929,1e-08,3629.9,3629.8,8.74186711]
[1753412834134,1e-08,3629.9,3629.8,2.75497272]
[1753412834330,1e-08,3629.9,3629.8,10.74497272]
[1753412834539,1e-08,3629.9,3629.8,11.35117272]
[1753412834829,1e-08,3629.9,3629.8,11.79097272]
[1753412835033,1e-08,3629.9,3629.8,13.24557697]
[1753412835218,1e-08,3629.9,3629.8,12.80477697]
[1753412835421,1e-08,3629.9,3629.8,13.24457697]
[1753412835896,1e-08,3629.9,3629.8,8.25557697]
[1753412836096,1e-08,3629.9,3629.8,10.24757697]
[1753412836299,1e-08,3629.9,3629.8,13.24757697]
[1753412837022,1e-08,3629.9,3629.8,13.24257697]
[1753412837335,1e-08,3629.9,3629.8,13.26057697]
[1753412837536,1e-08,3629.9,3629.8,14.15807697]
[1753412838136,1e-08,3629.9,3629.8,38.68802133]
[1753412838341,1e-08,3631.4,3631.3,2.75383471]
[1753412838636,1e-08,3631.9,3631.8,2.75345558]
[1753412838811,1e-08,3631.9,3631.8,7.73645558]
[1753412839134,1e-08,3631.9,3631.8,10.73845558]
[1753412839320,1e-08,3631.9,3631.8,11.80545558]
[1753412839719,1e-08,3631.9,3631.8,12.69985558]
[1753412839931,1e-08,3631.9,3631.8,14.38279631]
[1753412840751,1e-08,3631.9,3631.8,13.30579631]
[1753412840958,1e-08,3631.9,3631.8,2.75345558]
[1753412841115,1e-08,3631.9,3631.8,4.97]
[1753412841444,1e-08,3631.9,3631.8,7.28214913]
[1753412841746,1e-08,3631.9,3631.8,4.971]
[1753412841946,1.04780001,3631.9,3630.4,8.0614]
[1753412842246,1.04780001,3631.9,3630.7,2.75427861]
[1753412842247,1.0478,3631.8,3630.7,2.75427861]
[1753412842445,0.4451,3631.7,3630.8,4.974]
[1753412842648,1.4318,3631.6,3630.5,3.94273715]
[1753412842810,1.0478,3631.5,3630.6,2.7542935]
[1753412843015,0.55,3631.4,3630.7,4.972]
[1753412843344,0.55,3631.4,3630.7,4.99954289]
[1753412843571,0.55,3631.4,3630.2,2.75465942]
[1753412843714,0.8818,3631.6,3629.8,1.45460425]
[1753412843715,2.75428857,3630.8,3629.8,1.45460425]
[1753412843909,1.4318,3630.3,3629.1,2.79549178]
[1753412844110,3.30475729,3630.1,3629.2,5.25154918]
[1753412844343,2.75493842,3629.9,3629.2,4.972]
[1753412844649,0.55,3629.8,3629.2,4.972]
[1753412844874,1.0478,3630.0,3629.2,4.972]
[1753412844875,1.0478,3630.0,3629.2,4.99855428]
[1753412845075,0.8818,3630.3,3629.2,4.99855428]
[1753412845279,0.8818,3630.3,3629.6,2.75510616]
[1753412845636,0.8818,3630.3,3629.5,7.72218697]
[1753412845942,1.5978,3630.2,3629.3,3.0]
[1753412846169,1.5978,3630.2,3629.1,0.04]
[1753412846170,1.5978,3630.2,3629.5,2.75520044]
[1753412846361,1.5978,3630.2,3629.6,0.02755124]
[1753412846573,1.5978,3630.2,3629.3,2.75535227]
[1753412846778,0.4451,3630.2,3629.4,6.06714342]
[1753412846982,1.1527,3630.1,3629.4,7.71626133]
[1753412847141,1.1527,3630.1,3629.4,4.961]
[1753412847341,1.1527,3630.1,3629.5,2.75520044]
[1753412847569,1.1527,3630.1,3629.6,2.75512195]
[1753412847778,1.1527,3630.1,3629.6,2.78267319]
[1753412847979,0.8818,3630.3,3629.7,2.75504862]
[1753412848183,0.8818,3630.3,3629.4,4.961]
[1753412848342,0.8818,3630.3,3629.4,5.73664507]
[1753412848982,0.8818,3630.3,3629.6,2.75511135]
[1753412849183,0.8818,3630.3,3629.4,8.49191874]
[1753412849184,0.8818,3630.3,3629.7,2.75503954]
[1753412849490,0.8818,3630.3,3629.8,2.75495648]
[1753412849781,0.8818,3630.3,3629.4,5.73664507]
[1753412849989,0.8818,3630.3,3630.0,2.75479772]
[1753412850284,0.8818,3630.3,3630.2,2.75466916]
[1753412850579,1.5243,3631.0,3630.3,2.75459054]
[1753412850770,1.5243,3631.0,3630.3,4.939]
[1753412851117,1.6619,3631.0,3630.5,0.1376]
[1753412851273,1.0478,3630.9,3630.5,0.1376]
[1753412851451,0.55,3630.8,3630.1,0.02754745]
[1753412851651,0.1376,3630.7,3630.2,0.1376]
[1753412851975,1.0478,3630.9,3630.2,0.16514669]
[1753412851976,0.55,3630.9,3630.2,0.16514669]
[1753412852281,0.1376,3630.8,3630.2,0.16514669]
[1753412852502,0.1376,3630.8,3630.2,0.1376]
[1753412852702,0.1376,3630.8,3630.2,0.67230669]
[1753412852903,1.0478,3631.4,3630.7,0.1376]
[1753412853203,0.002,3631.0,3630.4,2.75450628]
[1753412853403,0.002,3631.0,3630.9,0.1376]
[1753412853703,0.002,3631.0,3630.1,4.934]
[1753412853916,0.4471,3631.0,3630.6,0.1376]
[1753412854108,0.4451,3630.9,3630.6,0.1376]
[1753412854547,1.0478,3630.8,3630.1,4.934]
[1753412854747,1.0478,3630.8,3630.5,0.1376]
[1753412854982,1.0478,3630.7,3630.1,4.934]
[1753412855293,0.1376,3630.9,3630.4,0.1376]
[1753412855680,1.0478,3630.8,3630.1,0.7935]
[1753412855904,1.0478,3630.8,3630.3,0.1376]
[1753412856086,0.1376,3630.9,3630.3,0.1376]
[1753412856087,0.4451,3630.7,3630.3,0.1376]
[1753412856300,0.4451,3630.6,3630.3,0.1376]
[1753412856513,0.55,3630.8,3630.3,0.1376]
[1753412856682,0.4451,3630.7,3630.3,0.1376]
[1753412857113,0.1396,3631.0,3630.5,0.1376]
[1753412857316,0.5847,3631.0,3630.5,0.1376]
[1753412857495,1.0478,3630.9,3630.5,0.1376]
[1753412857817,0.1396,3631.0,3630.5,0.1376]
[1753412858120,0.002,3631.0,3630.8,0.1376]
[1753412859227,0.002,3631.0,3630.9,0.02754138]
[1753412859721,0.002,3631.0,3630.8,0.1376]
[1753412860219,0.002,3631.0,3630.8,2.89180293]
[1753412860607,0.002,3631.0,3630.9,2.75413809]
[1753412860812,0.002,3631.0,3630.8,0.1376]
[1753412861986,0.002,3631.0,3630.8,2.89179474]
[1753412862730,0.002,3631.0,3630.9,2.75413809]
[1753412862905,0.002,3631.0,3630.8,0.1376]
[1753412863098,0.002,3631.0,3630.9,2.75413809]
[1753412863294,0.002,3631.0,3630.9,6.80694843]
[1753412863504,0.002,3631.0,3630.8,0.1376]
[1753412863698,0.4471,3631.0,3630.8,0.1376]
[1753412864040,1.0478,3630.9,3630.2,3.0]
[1753412864194,1.0478,3630.9,3630.5,0.1376]
[1753412864728,1.0478,3630.8,3630.3,4.869]
[1753412864978,0.8797,3631.0,3630.3,4.869]
[1753412865190,0.8797,3631.0,3630.7,0.1376]
[1753412865476,0.8797,3631.0,3630.4,0.02754517]
[1753412865626,0.8797,3631.0,3630.5,0.1376]
[1753412865827,0.002,3631.0,3630.6,0.02754365]
[1753412866230,0.002,3631.0,3630.7,0.02754289]
[1753412866679,0.002,3631.0,3630.8,5.0006]
[1753412867232,0.002,3631.0,3630.8,7.75480962]
[1753412867432,0.002,3631.0,3630.9,6.84537947]
[1753412867672,0.002,3631.0,3630.9,6.81783809]
[1753412867974,0.002,3631.0,3630.9,8.27510546]
[1753412868129,0.002,3631.0,3630.9,14.89135246]
[1753412868768,0.002,3631.0,3630.9,11.64310546]
[1753412869165,1e-08,3631.9,3631.8,2.75345558]
[1753412869329,1e-08,3631.9,3631.8,10.60645558]
[1753412869534,1e-08,3631.9,3631.8,14.04675668]
[1753412870947,1e-08,3631.9,3631.8,9.19375668]
[1753412871152,1e-08,3631.9,3631.8,13.90615668]
[1753412871554,1e-08,3631.9,3631.8,10.0890011]